[Event "WYCC 2018 O18"]
[Site "Halkidiki"]
[Date "2018.10.20"]
[Round "1"]
[White "Ranaldi, Lucas"]
[Black "Manu David Suthandram R"]
[Result "1/2-1/2"]
[ECO "D35"]
[WhiteElo "2335"]
[BlackElo "1970"]
[Annotator "NA"]
[PlyCount "90"]
[EventDate "2018.10.20"]
[EventType "swiss"]
[EventCountry "GRE"]
[SourceTitle "playchess.com"]
[Source "ChessBase"]
[SourceQuality "1"]
[TimeControl "40/5400+30:1800+30"]

1. d4 {[%emt 0:00:00]} Nf6 {[%emt 0:00:00]} 2. c4 {[%emt 0:00:00]} e6 {[%emt 0:00:01]} 3. Nc3 {[%emt 0:00:01]} d5 {[%emt 0:00:06]} 4. cxd5 {[%emt 0:00:11]} exd5 {[%emt 0:00:10]} 5. Bg5 {[%emt 0:00:09]} Be7 {[%emt 0:00:06]} 6. e3 {[%emt 0:00:11]} O-O {[%emt 0:00:08]} 7. Bd3 {[%emt 0:00:07]} h6 {[%emt 0:02:34]} 8. Bh4 {[%emt 0:00:15]} c5 {[%emt 0:00:34]} 9. dxc5 {[%emt 0:02:58] D35: Damengambit (Abtauschvariante)} Nbd7 {[%emt 0:00:06]} 10. Nge2 {[%emt 0:01:47]} Nxc5 {[%emt 0:00:41]} 11. O-O {[%emt 0:11:05]} Be6 {[%emt 0:07:07]} 12. Bc2 {[%emt 0:15:44]} (12. Nd4 Qd7 13. Bb5 Qd6 14. Rc1 Rac8 15. Be2 a6 16. f3 b5 {0-1 (36) Koneru,H (2557)-Cori Tello,D (2391) Batumi 2018}) 12... Qb6 {[%emt 0:10:34]} 13. Rb1 {[%emt 0:03:53]} Rfd8 {[%emt 0:05:48]} 14. Nd4 {[%emt 0:01:55]} Rd7 $146 {[%emt 0:11:12]} ({Vorgänger:} 14... Rac8 15. Nf5 Bxf5 16. Bxf5 Rb8 17. Bxf6 Bxf6 18. Nxd5 {½-½ (30) Li,Z (2249)-Watson,B (2300) Auckland 2012}) 15. Nxe6 {[%emt 0:34:25]} Qxe6 {[%emt 0:06:46]} 16. Ne2 {[%emt 0:05:01]} Qb6 {[%emt 0:11:33]} 17. Nd4 {[%emt 0:03:12]} g6 {[%emt 0:07:19]} 18. Qe2 {[%emt 0:01:25]} Nfe4 {[%emt 0:03:26]} 19. Bxe7 {[%emt 0:00:38]} Rxe7 {[%emt 0:00:01]} 20. Rfd1 {[%emt 0:00:56]} Rae8 {[%emt 0:01:33]} 21. Nb3 $15 {[%emt 0:03:30]} (21. a4 $14) 21... Re5 {[%emt 0:01:14]} 22. Nd4 {[%emt 0:01:49]} Nf6 {[%emt 0:04:40]} 23. Qb5 {[%emt 0:03:24]} Qxb5 {[%emt 0:02:29]} 24. Nxb5 {[%emt 0:00:01]} a6 {[%emt 0:00:11]} 25. Nd4 {[%emt 0:02:19]} Nce4 {[%emt 0:01:33]} 26. h3 {[%emt 0:02:53]} R5e7 {[%emt 0:01:37]} 27. Rbc1 {[%emt 0:00:24]} Rc8 {[%emt 0:00:50]} 28. Bb3 {[%emt 0:01:54]} Rxc1 {[%emt 0:00:44]} 29. Rxc1 {[%emt 0:00:01]} Nd2 {[%emt 0:00:09]} 30. Rc8+ {[%emt 0:01:51]} Kg7 {[%emt 0:00:15]} 31. Bd1 {[%emt 0:01:17]} Nc4 {[%emt 0:01:33]} 32. b3 {[%emt 0:00:46]} Nb6 {[%emt 0:00:04]} 33. Rc2 {[%emt 0:00:57]} Ne8 {[%emt 0:00:32]} 34. Bf3 {[%emt 0:01:24]} Rc7 {[%emt 0:00:10]} 35. Kf1 {[%emt 0:00:29]} Kf6 {[%emt 0:00:14]} 36. Ke2 {[%emt 0:00:16]} Rxc2+ {[%emt 0:00:44]} 37. Nxc2 {[%emt 0:00:01]} Ke5 {[%emt 0:00:13]} 38. Kd3 {[%emt 0:00:25]} Nd6 {[%emt 0:00:07]} 39. a4 {[%emt 0:01:19]} Nd7 {[%emt 0:00:55]} 40. Kc3 {[%emt 0:00:00]} Nc5 {[%emt 0:00:00]} 41. Kb4 {[%emt 0:26:12]} Nd3+ {[%emt 0:00:57]} 42. Ka5 {[%emt 0:00:01]} Nxf2 {[%emt 0:00:15]} 43. Nb4 {[%emt 0:02:09]} d4 {[%emt 0:02:17]} 44. exd4+ {[%emt 0:00:22]} Kxd4 {[%emt 0:00:09]} 45. Na2 {[%emt 0:01:58]} Kd3 {[%emt 0:15:39]} 1/2-1/2

[Event "WYCC 2018 O18"]
[Site "Halkidiki"]
[Date "2018.10.20"]
[Round "1"]
[White "Liska, Jiri"]
[Black "Moroni, Luca Jr"]
[Result "0-1"]
[ECO "A06"]
[WhiteElo "2245"]
[BlackElo "2554"]
[Annotator "ChessBase"]
[PlyCount "76"]
[EventDate "2018.10.20"]
[EventType "swiss"]
[EventCountry "GRE"]
[SourceTitle "playchess.com"]
[Source "ChessBase"]
[SourceQuality "1"]
[TimeControl "40/5400+30:1800+30"]

1. Nf3 {[%emt 0:00:00]} d5 {[%emt 0:00:00]} 2. d4 {[%emt 0:00:00]} e6 {[%emt 0:00:00]} 3. c4 {[%emt 0:00:00]} a6 {[%emt 0:00:00]} 4. Nbd2 {[%emt 0:00:27]} Nf6 {[%emt 0:01:04]} 5. g3 {[%emt 0:00:37]} b5 {[%emt 0:04:21]} 6. cxb5 {[%emt 0:08:58]} axb5 {[%emt 0:00:37]} 7. Bg2 {[%emt 0:01:14]} Nbd7 {[%emt 0:02:58]} 8. O-O {[%emt 0:01:54]} Bb7 {[%emt 0:02:24]} 9. Nb3 {[%emt 0:06:11]} Ne4 {[%emt 0:04:13]} 10. Bf4 {[%emt 0:08:33]} Be7 {[%emt 0:03:12]} 11. Qd3 {[%emt 0:06:25]} c6 {[%emt 0:04:17]} 12. Ne5 {[%emt 0:09:42]} Nxe5 {[%emt 0:06:20]} 13. Bxe5 {[%emt 0:00:25]} Nf6 {[%emt 0:01:11]} 14. Nc5 {[%emt 0:13:27]} Bxc5 {[%emt 0:04:16]} 15. dxc5 {[%emt 0:00:08]} O-O {[%emt 0:00:07]} 16. e4 {[%emt 0:04:03]} Re8 {[%emt 0:08:59]} 17. Rfd1 {[%emt 0:02:42]} Nd7 {[%emt 0:07:11]} 18. Bd6 {[%emt 0:05:14]} f6 {[%emt 0:03:15]} 19. Bh3 {[%emt 0:07:54]} Ne5 {[%emt 0:03:48]} 20. Bxe5 {[%emt 0:05:30]} fxe5 {[%emt 0:00:10]} 21. Qc3 {[%emt 0:02:46]} Qf6 {[%emt 0:02:51]} 22. Rf1 {[%emt 0:03:26]} Rf8 {[%emt 0:02:52]} 23. b4 {[%emt 0:02:38]} Bc8 {[%emt 0:03:42]} 24. a3 {[%emt 0:01:25]} Ra7 {[%emt 0:01:32]} 25. Rae1 {[%emt 0:02:08]} d4 {[%emt 0:02:01]} 26. Qb3 {[%emt 0:00:31]} Raf7 {[%emt 0:00:44]} 27. Bg2 {[%emt 0:01:17]} h5 {[%emt 0:01:31]} 28. f3 {[%emt 0:01:47]} Qh6 {[%emt 0:03:38]} 29. Qd3 {[%emt 0:03:01]} h4 {[%emt 0:01:07]} 30. Rf2 {[%emt 0:01:27]} hxg3 {[%emt 0:05:20]} 31. hxg3 {[%emt 0:00:02]} Qg5 {[%emt 0:00:19]} 32. g4 {[%emt 0:01:24]} Bd7 {[%emt 0:01:35]} 33. Kf1 {[%emt 0:00:38]} Be8 {[%emt 0:00:33]} 34. Ke2 {[%emt 0:00:22]} Rf4 {[%emt 0:00:35]} 35. Ref1 {[%emt 0:00:39]} Bg6 {[%emt 0:00:16]} 36. Ke1 {[%emt 0:00:30]} Bxe4 {[%emt 0:01:29]} 37. fxe4 {[%emt 0:00:32]} Rxf2 {[%emt 0:00:07]} 38. Rxf2 {[%emt 0:00:24]} Qc1+ {[%emt 0:00:04]} 0-1

[Event "WYCC 2018 O18"]
[Site "Halkidiki"]
[Date "2018.10.20"]
[Round "1"]
[White "Jimenez Ramallo, Francisco J"]
[Black "Ayats Llobera, Gerard"]
[Result "1/2-1/2"]
[ECO "A25"]
[WhiteElo "2073"]
[BlackElo "2399"]
[Annotator "NA"]
[PlyCount "84"]
[EventDate "2018.10.20"]
[EventType "swiss"]
[EventCountry "GRE"]
[SourceTitle "playchess.com"]
[Source "ChessBase"]
[SourceQuality "1"]
[TimeControl "40/5400+30:1800+30"]

1. c4 {[%emt 0:00:00]} e5 {[%emt 0:00:00]} 2. Nc3 {[%emt 0:00:00]} d6 {[%emt 0:00:00]} 3. g3 {[%emt 0:00:00]} Nc6 {[%emt 0:00:00]} 4. Bg2 {[%emt 0:00:09]} Be6 {[%emt 0:00:00]} 5. d3 {[%emt 0:02:04]} Qd7 {[%emt 0:00:00]} 6. Rb1 {[%emt 0:03:05]} g6 {[%emt 0:00:11]} 7. Nd5 {[%emt 0:14:14] A25: English Opening vs King's Indian with ...Nc6 but without early d3} Bg7 {[%emt 0:02:15]} 8. Nf3 {[%emt 0:01:47]} h6 {[%emt 0:00:58]} 9. O-O {[%emt 0:05:23]} Nd8 {[%emt 0:11:27]} 10. e3 $146 {[%emt 0:13:13]} ({Predecessor:} 10. e4 c6 11. Nc3 Ne7 12. b3 Bg4 13. Be3 Ne6 14. h3 Bxf3 15. Qxf3 O-O {½-½ (40) Apicella,M (2520)-Mouhamad,J (2224) Nimes 2014}) 10... c6 {[%emt 0:00:37]} 11. Nc3 {[%emt 0:00:20]} f5 {[%emt 0:03:26]} 12. Qe2 {[%emt 0:01:39]} Nf6 {[%emt 0:00:12]} 13. d4 {[%emt 0:10:30]} e4 {[%emt 0:01:43]} 14. Nd2 {[%emt 0:00:07]} O-O {[%emt 0:01:12]} 15. b4 {[%emt 0:05:15]} g5 {[%emt 0:18:29]} 16. f3 {[%emt 0:15:57]} exf3 {[%emt 0:00:26]} 17. Bxf3 {[%emt 0:01:40]} d5 {[%emt 0:00:53]} 18. Nb3 {[%emt 0:04:21]} b6 {[%emt 0:11:49]} 19. c5 {[%emt 0:02:48]} Ne4 {[%emt 0:00:41]} 20. Bd2 {[%emt 0:01:48]} Bf7 {[%emt 0:03:57]} 21. Bxe4 $15 {[%emt 0:06:50]} fxe4 {[%emt 0:02:40]} 22. Qa6 {[%emt 0:01:04]} Rb8 {[%emt 0:05:06]} 23. b5 {[%emt 0:01:13]} Bh5 {[%emt 0:03:39]} 24. bxc6 {[%emt 0:00:47]} Nxc6 {[%emt 0:00:21]} 25. cxb6 {[%emt 0:01:57]} Rxb6 {[%emt 0:02:02]} 26. Rxf8+ {[%emt 0:00:51]} Bxf8 {[%emt 0:00:05]} 27. Qf1 {[%emt 0:00:21]} Bf3 {[%emt 0:01:15]} 28. Na4 {[%emt 0:00:45]} Rb8 {[%emt 0:00:50]} 29. Nbc5 {[%emt 0:00:17]} Qc8 {[%emt 0:01:45]} 30. Rxb8 {[%emt 0:04:34]} Nxb8 {[%emt 0:00:02]} 31. h3 {[%emt 0:01:40]} Bd6 {[%emt 0:00:15]} 32. Be1 {[%emt 0:00:13]} Qc7 {[%emt 0:00:34]} 33. Qf2 {[%emt 0:01:04]} h5 {[%emt 0:02:04]} 34. a3 {[%emt 0:00:31]} h4 {[%emt 0:02:14]} 35. Qa2 {[%emt 0:00:13]} Qf7 {[%emt 0:01:23]} 36. Nc3 {[%emt 0:00:17]} hxg3 {[%emt 0:02:33]} 37. Qxd5 {[%emt 0:00:09]} Qxd5 {[%emt 0:00:17]} 38. Nxd5 {[%emt 0:00:01]} Kf7 {[%emt 0:01:08]} 39. Nc3 {[%emt 0:00:48]} Bxc5 {[%emt 0:00:04]} 40. dxc5 {[%emt 0:00:00]} g2 {[%emt 0:00:00]} 41. Nb5 {[%emt 0:04:33]} Nc6 {[%emt 0:01:14]} 42. Bc3 {[%emt 0:05:34]} Ke6 {[%emt 0:18:42]} 1/2-1/2

[Event "WYCC 2018 O18"]
[Site "Halkidiki"]
[Date "2018.10.20"]
[Round "1"]
[White "Samaridis, Konstantinos"]
[Black "Bronstein, Or"]
[Result "0-1"]
[ECO "A36"]
[WhiteElo "2052"]
[BlackElo "2385"]
[Annotator "NA"]
[PlyCount "98"]
[EventDate "2018.10.20"]
[EventType "swiss"]
[EventCountry "GRE"]
[SourceTitle "playchess.com"]
[Source "ChessBase"]
[SourceQuality "1"]
[TimeControl "40/5400+30:1800+30"]

1. c4 {[%emt 0:00:00]} g6 {[%emt 0:01:06]} 2. g3 {[%emt 0:00:00]} Bg7 {[%emt 0:00:14]} 3. Bg2 {[%emt 0:00:00]} c5 {[%emt 0:00:16]} 4. Nc3 {[%emt 0:00:26]} Nc6 {[%emt 0:02:51]} 5. a3 {[%emt 0:02:26]} e6 {[%emt 0:01:11]} 6. Rb1 {[%emt 0:02:45]} Nge7 {[%emt 0:00:29]} 7. b4 {[%emt 0:01:19] A36: Englische Eröffnung (Botwinnik-Variante)} d6 {[%emt 0:02:09]} 8. h4 {[%emt 0:08:41]} (8. Nf3 O-O 9. O-O b6 10. e3 d5 11. bxc5 bxc5 12. Na4 Qd6 13. d3 Ba6 14. Qc2 Rab8 15. Rxb8 Rxb8 16. cxd5 Nxd5 17. e4 {½-½ (33) Ding,L (2773)-Svidler,P (2755) Moscow 2017}) 8... O-O {[%emt 0:17:16]} 9. Nf3 {[%emt 0:04:49]} h6 {[%emt 0:11:36]} 10. Qb3 $146 {[%emt 0:06:36]} ({Vorgänger:} 10. O-O Rb8 11. Qc2 b6 12. d3 Bb7 13. e4 Qd7 14. Be3 Nd4 15. Qd2 Kh7 16. Bxd4 cxd4 17. Nb5 Nc6 {½-½ (17) Reschke,S (2358)-Andersson,U (2565) Bad Zwesten 2006}) 10... b6 {[%emt 0:07:17]} 11. Bb2 {[%emt 0:06:08]} Bb7 {[%emt 0:02:13]} 12. O-O {[%emt 0:01:37]} Rb8 {[%emt 0:00:29]} 13. e3 {[%emt 0:04:53]} Qd7 {[%emt 0:07:56]} 14. Ne2 {[%emt 0:02:38]} Ne5 {[%emt 0:11:13]} 15. Nxe5 {[%emt 0:05:01]} dxe5 {[%emt 0:00:02]} 16. d3 {[%emt 0:05:03]} Bxg2 {[%emt 0:02:22]} 17. Kxg2 {[%emt 0:00:59]} Rfd8 {[%emt 0:01:26]} 18. Rfd1 {[%emt 0:00:27]} Qc6+ {[%emt 0:01:09]} 19. e4 $11 {[%emt 0:03:29]} f5 {[%emt 0:07:36]} 20. f3 {[%emt 0:00:17]} g5 {[%emt 0:00:07]} 21. b5 {[%emt 0:06:13]} Qb7 {[%emt 0:00:24]} 22. hxg5 {[%emt 0:00:52]} hxg5 {[%emt 0:00:01]} 23. Qc2 {[%emt 0:01:52]} Ng6 {[%emt 0:01:37]} 24. Bc3 {[%emt 0:05:56]} Rf8 {[%emt 0:00:36]} 25. Rh1 {[%emt 0:08:25]} Rbd8 {[%emt 0:00:28]} 26. a4 {[%emt 0:06:00]} Qe7 {[%emt 0:02:50]} 27. Bd2 {[%emt 0:01:48]} g4 {[%emt 0:01:21]} 28. fxg4 {[%emt 0:01:15]} f4 {[%emt 0:00:26]} 29. Ng1 {[%emt 0:04:50]} Qg5 {[%emt 0:00:33]} 30. Kf3 {[%emt 0:00:19]} Qf6 {[%emt 0:01:26]} 31. Kg2 {[%emt 0:05:47]} fxg3 {[%emt 0:00:23]} 32. Be3 {[%emt 0:00:01]} Nf4+ {[%emt 0:01:04]} 33. Bxf4 {[%emt 0:00:02]} Qxf4 {[%emt 0:01:32]} 34. Qe2 {[%emt 0:00:27]} Qf2+ {[%emt 0:08:37]} 35. Qxf2 {[%emt 0:00:12]} gxf2 {[%emt 0:00:02]} 36. Nh3 {[%emt 0:00:57]} Rxd3 {[%emt 0:00:05]} 37. Rhf1 {[%emt 0:01:28]} Rd4 {[%emt 0:00:48]} 38. Ng5 {[%emt 0:02:30]} Rf6 {[%emt 0:02:23]} 39. Rxf2 {[%emt 0:01:01]} Rg6 {[%emt 0:00:04]} 40. Rf7 {[%emt 0:00:00]} Rxg5 {[%emt 0:00:00]} 41. Rxa7 {[%emt 0:01:34]} Rxg4+ {[%emt 0:00:23]} 42. Kh3 {[%emt 0:00:17]} Rg6 {[%emt 0:00:42]} 43. a5 {[%emt 0:00:24]} Rd3+ {[%emt 0:00:19]} 44. Kh2 {[%emt 0:00:55]} Bh6 {[%emt 0:00:05]} 45. Rf1 {[%emt 0:00:46]} Bf4+ {[%emt 0:00:11]} 46. Rxf4 {[%emt 0:00:06]} exf4 {[%emt 0:00:10]} 47. axb6 {[%emt 0:03:00]} Rd2+ {[%emt 0:00:02]} 48. Kh1 {[%emt 0:00:09]} f3 {[%emt 0:00:24]} 49. Ra1 {[%emt 0:00:37]} Rh6+ {[%emt 0:00:05]} 0-1

[Event "WYCC 2018 O18"]
[Site "Halkidiki"]
[Date "2018.10.20"]
[Round "1"]
[White "Stavropoulos, Konstantinos"]
[Black "Muha, Miljenko"]
[Result "0-1"]
[ECO "D31"]
[WhiteElo "2045"]
[BlackElo "2365"]
[Annotator "NA"]
[PlyCount "74"]
[EventDate "2018.10.20"]
[EventType "swiss"]
[EventCountry "GRE"]
[SourceTitle "playchess.com"]
[Source "ChessBase"]
[SourceQuality "1"]
[TimeControl "40/5400+30:1800+30"]

1. d4 {[%emt 0:00:00]} d5 {[%emt 0:00:00]} 2. c4 {[%emt 0:00:16]} e6 {[%emt 0:00:00]} 3. Nc3 {[%emt 0:00:30]} Be7 {[%emt 0:00:38]} 4. cxd5 {[%emt 0:01:28]} exd5 {[%emt 0:00:14]} 5. Bf4 {[%emt 0:00:09]} c6 {[%emt 0:00:54]} 6. Qc2 {[%emt 0:03:01]} Nf6 {[%emt 0:09:45]} 7. e3 {[%emt 0:01:42]} Bd6 {[%emt 0:03:16]} 8. Bg5 {[%emt 0:06:30]} Be6 {[%emt 0:03:31]} 9. Bd3 {[%emt 0:01:47]} h6 {[%emt 0:03:28]} 10. Bh4 {[%emt 0:00:16]} Nbd7 {[%emt 0:00:21]} 11. Nge2 {[%emt 0:06:01]} O-O {[%emt 0:11:29]} 12. f3 {[%emt 0:20:37]} c5 {[%emt 0:05:51]} 13. O-O {[%emt 0:04:31]} Qe7 {[%emt 0:08:55]} 14. Nb5 {[%emt 0:11:37]} Bb8 {[%emt 0:04:40]} 15. dxc5 $14 {[%emt 0:01:44]} Qxc5 {[%emt 0:02:08]} 16. Qd2 {[%emt 0:05:29]} Qb6 {[%emt 0:08:02]} 17. Nbd4 {[%emt 0:06:11]} Re8 {[%emt 0:00:46]} 18. Rac1 {[%emt 0:00:56]} Bd6 {[%emt 0:04:30]} 19. a3 {[%emt 0:08:20]} Bc5 {[%emt 0:03:07]} 20. Rc3 {[%emt 0:03:23]} a6 {[%emt 0:03:01]} 21. Rfc1 {[%emt 0:00:42]} Bd6 {[%emt 0:06:33]} 22. Bf2 {[%emt 0:05:22]} Qd8 {[%emt 0:02:29]} 23. Bb1 {[%emt 0:02:04]} Nf8 {[%emt 0:02:00]} 24. Ba2 {[%emt 0:00:30]} Bd7 {[%emt 0:02:56]} 25. Bh4 {[%emt 0:01:47]} Ng6 {[%emt 0:03:01]} 26. Bxf6 {[%emt 0:02:15]} Qxf6 {[%emt 0:00:07]} 27. f4 {[%emt 0:00:07]} Ne7 {[%emt 0:01:31]} 28. Nf3 {[%emt 0:00:56]} Rad8 {[%emt 0:01:39]} 29. Bxd5 {[%emt 0:01:46]} Nxd5 {[%emt 0:00:17]} 30. Qxd5 {[%emt 0:00:05]} Bc6 {[%emt 0:00:55]} 31. Qh5 {[%emt 0:00:31]} Bb8 {[%emt 0:01:06]} 32. Ned4 {[%emt 0:00:15]} Ba7 {[%emt 0:01:24]} 33. Nxc6 {[%emt 0:02:44]} bxc6 {[%emt 0:00:29]} 34. Ne5 {[%emt 0:02:41]} Qxf4 {[%emt 0:00:25]} 35. Rf1 {[%emt 0:00:11]} Bxe3+ {[%emt 0:00:43]} 36. Rxe3 {[%emt 0:00:07]} Qxe3+ {[%emt 0:00:04]} 37. Kh1 {[%emt 0:01:07]} Qxe5 {[%emt 0:00:14]} 0-1

[Event "WYCC 2018 O18"]
[Site "Halkidiki"]
[Date "2018.10.20"]
[Round "1"]
[White "Polyakov, Fedor"]
[Black "Agmanov, Zhandos"]
[Result "0-1"]
[ECO "E00"]
[WhiteElo "2036"]
[BlackElo "2354"]
[Annotator "NA"]
[PlyCount "90"]
[EventDate "2018.10.20"]
[EventType "swiss"]
[EventCountry "GRE"]
[SourceTitle "playchess.com"]
[Source "ChessBase"]
[SourceQuality "1"]
[TimeControl "40/5400+30:1800+30"]

1. d4 {[%emt 0:00:00]} Nf6 {[%emt 0:00:00]} 2. c4 {[%emt 0:01:24]} e6 {[%emt 0:00:00]} 3. a3 {[%emt 0:01:47]} d5 {[%emt 0:00:24]} 4. Nc3 {[%emt 0:00:31]} c5 {[%emt 0:00:18]} 5. e3 {[%emt 0:00:47]} cxd4 {[%emt 0:04:27]} 6. exd4 {[%emt 0:00:08]} Be7 {[%emt 0:00:15]} 7. Nf3 {[%emt 0:02:50]} O-O {[%emt 0:00:33]} 8. Bd3 {[%emt 0:00:48]} dxc4 {[%emt 0:07:33]} 9. Bxc4 {[%emt 0:00:50]} a6 {[%emt 0:00:04] D40: Damengambit (Verbesserte Tarrasch-Verteidigung)} 10. d5 $146 {[%emt 0:14:21]} ({Vorgänger:} 10. O-O b5 11. Bb3 Bb7 12. Re1 Nbd7 13. Bg5 Nb6 14. Ne5 Nbd5 15. Rc1 Rc8 16. Bxf6 Bxf6 17. Nxd5 Bxd5 18. Rxc8 Qxc8 19. Bxd5 exd5 {0-1 (43) Ehlvest,J (2536)-Izoria,Z (2599) chess.com INT 2018}) 10... b5 {[%emt 0:02:30]} 11. Ba2 {[%emt 0:02:43]} exd5 {[%emt 0:21:07]} 12. Nxd5 {[%emt 0:02:25]} Bb7 {[%emt 0:02:48]} 13. Nxe7+ {[%emt 0:01:18]} Qxe7+ {[%emt 0:02:58]} 14. Qe2 {[%emt 0:00:33]} Re8 {[%emt 0:02:19]} 15. Qxe7 {[%emt 0:03:02]} Rxe7+ {[%emt 0:00:42]} 16. Be3 {[%emt 0:02:37]} Nbd7 {[%emt 0:16:14]} 17. O-O {[%emt 0:03:35]} Bxf3 {[%emt 0:00:47]} 18. gxf3 {[%emt 0:00:01]} Ne5 {[%emt 0:00:12]} 19. Kg2 {[%emt 0:01:14]} Ng6 {[%emt 0:02:16]} 20. Bb1 {[%emt 0:15:57]} Nd5 {[%emt 0:12:26]} 21. Be4 {[%emt 0:04:09]} Nxe3+ {[%emt 0:01:34]} 22. fxe3 {[%emt 0:00:03]} Rae8 {[%emt 0:00:13]} 23. Kf2 {[%emt 0:05:01]} Ne5 {[%emt 0:00:52]} 24. h3 {[%emt 0:03:41]} Nc4 {[%emt 0:03:39]} 25. a4 {[%emt 0:06:01]} g6 $15 {[%emt 0:15:25]} 26. axb5 {[%emt 0:00:57]} axb5 {[%emt 0:00:00]} 27. Rfd1 {[%emt 0:03:19]} Nxb2 {[%emt 0:00:41]} 28. Rdb1 {[%emt 0:00:28]} Nc4 {[%emt 0:00:29]} 29. Bc6 {[%emt 0:07:39]} Rd8 {[%emt 0:02:07]} 30. e4 {[%emt 0:00:44]} Rd2+ {[%emt 0:00:40]} 31. Kg3 {[%emt 0:00:12]} Ne3 {[%emt 0:01:16]} 32. Bxb5 {[%emt 0:02:42]} Rg2+ {[%emt 0:00:13]} 33. Kf4 {[%emt 0:00:03]} Nc2 {[%emt 0:00:37]} 34. Ra6 {[%emt 0:07:08]} Kg7 {[%emt 0:00:37]} 35. e5 {[%emt 0:00:48]} Nd4 {[%emt 0:00:15]} 36. Bf1 {[%emt 0:01:02]} Rc2 {[%emt 0:00:26]} 37. Ke3 {[%emt 0:01:50]} Nf5+ {[%emt 0:00:35]} 38. Kf4 {[%emt 0:01:41]} Rd2 {[%emt 0:00:32]} 39. Ra4 {[%emt 0:00:49]} h6 {[%emt 0:00:40]} 40. Re4 {[%emt 0:00:00]} h5 {[%emt 0:00:00]} 41. Ba6 {[%emt 0:16:22]} Ra7 {[%emt 0:05:27]} 42. Bc4 {[%emt 0:02:59]} Rh2 {[%emt 0:01:20]} 43. Bf1 {[%emt 0:02:58]} Rf2 {[%emt 0:01:53]} 44. e6 {[%emt 0:01:59]} Kf6 {[%emt 0:00:51]} 45. h4 {[%emt 0:00:53]} Rh2 {[%emt 0:00:33] Ke5+ Kxe5} 0-1

[Event "WYCC 2018 O18"]
[Site "Halkidiki"]
[Date "2018.10.20"]
[Round "1"]
[White "Fortanelli Rios, Juan Manuel"]
[Black "Stijve, Theo"]
[Result "0-1"]
[ECO "B31"]
[WhiteElo "2015"]
[BlackElo "2345"]
[Annotator "NA"]
[PlyCount "56"]
[EventDate "2018.10.20"]
[EventType "swiss"]
[EventCountry "GRE"]
[SourceTitle "playchess.com"]
[Source "ChessBase"]
[SourceQuality "1"]
[TimeControl "40/5400+30:1800+30"]

1. e4 {[%emt 0:00:00]} c5 {[%emt 0:00:11]} 2. Nf3 {[%emt 0:00:00]} Nc6 {[%emt 0:00:07]} 3. Bb5 {[%emt 0:00:00]} g6 {[%emt 0:00:09]} 4. Bxc6 {[%emt 0:00:23]} dxc6 {[%emt 0:00:39]} 5. d3 {[%emt 0:00:17]} Bg7 {[%emt 0:00:15]} 6. h3 {[%emt 0:01:13]} Nh6 {[%emt 0:00:28] B31: Sicilian: 2...Nc6 3 Bb5 g6} (6... Nf6 7. Nc3 O-O 8. Be3 b6 9. Qd2 e5 10. Bh6 Qd6 11. Bxg7 Kxg7 12. a4 Ne8 13. Nh2 Nc7 14. Ng4 f6 15. f3 Ne6 16. h4 Nd4 17. h5 g5 {½-½ (54) Anand,V (2768)-Carlsen,M (2842) Saint Louis 2018}) 7. Nbd2 {[%emt 0:03:25]} e5 {[%emt 0:09:44]} 8. Nc4 {[%emt 0:07:49]} f6 {[%emt 0:00:27]} 9. Be3 {[%emt 0:00:13]} b6 {[%emt 0:07:11]} 10. a4 {[%emt 0:01:05]} Be6 {[%emt 0:06:44]} 11. Qd2 $146 {[%emt 0:17:58]} ({Predecessor:} 11. O-O O-O 12. a5 Bxc4 13. dxc4 Qc7 14. Ra3 Nf7 {½-½ (49) Garcia Martin,M (2166)-Martinez Lopez,C (1996) Barbera del Valles 2015}) 11... Nf7 {[%emt 0:00:46]} 12. O-O {[%emt 0:10:18]} O-O {[%emt 0:02:40]} 13. Rad1 {[%emt 0:12:58]} Qc7 {[%emt 0:09:27]} 14. Nh2 {[%emt 0:08:09]} f5 {[%emt 0:07:42]} 15. exf5 {[%emt 0:08:43]} gxf5 {[%emt 0:02:11]} 16. f4 {[%emt 0:03:55]} e4 {[%emt 0:07:01]} 17. g4 {[%emt 0:12:35]} Rad8 {[%emt 0:07:31]} 18. b3 {[%emt 0:01:18]} Rfe8 {[%emt 0:04:22]} 19. Qf2 {[%emt 0:00:22]} exd3 {[%emt 0:08:04]} 20. cxd3 {[%emt 0:00:10]} b5 {[%emt 0:02:20]} 21. axb5 {[%emt 0:01:39]} cxb5 $19 {[%emt 0:00:32]} 22. Ne5 {[%emt 0:02:03]} Bxb3 {[%emt 0:06:49]} 23. Rb1 {[%emt 0:01:27]} Nxe5 {[%emt 0:01:40]} 24. fxe5 {[%emt 0:00:29]} Rxd3 {[%emt 0:01:28]} 25. Nf3 {[%emt 0:03:19]} Bxe5 {[%emt 0:03:09]} 26. Nxe5 {[%emt 0:02:23]} Qxe5 {[%emt 0:00:24]} 27. Bxc5 {[%emt 0:00:14]} Rg3+ {[%emt 0:00:36]} 28. Kh2 {[%emt 0:00:41]} Rxg4+ 0-1